[Event "NJSK 2024 Cm"]
[Site "Groningen, Netherlands"]
[Date "2024.04.30"]
[Round "4.5"]
[White "Zhang, Jinchen"]
[Black "Regterschot, Frederieke"]
[Result "0-1"]
[TimeControl "90min/40moves + 30min + 30sec/move"]
[WhiteElo "1348"]
[BlackElo "1292"]

1. e4 {[%clk 01:30:57]} {[%emt 00:00:02]} e5 {[%clk 01:30:54]} {[%emt
00:00:07]} 2. Nf3 {[%clk 01:31:15]} {[%emt 00:00:10]} Nc6 {[%clk 01:31:06]}
{[%emt 00:00:19]} 3. d4 {[%clk 01:31:27]} {[%emt 00:00:18]} exd4 {[%clk
01:30:49]} {[%emt 00:00:47]} 4. Nxd4 {[%clk 01:31:42]} {[%emt 00:00:15]} Bc5
{[%clk 01:30:48]} {[%emt 00:00:32]} 5. Be3 {[%clk 01:31:48]} {[%emt 00:00:23]}
Nxd4 {[%clk 01:30:00]} {[%emt 00:01:19]} 6. Bxd4 {[%clk 01:31:57]} {[%emt
00:00:21]} Bxd4 {[%clk 01:30:05]} {[%emt 00:00:24]} 7. Qxd4 {[%clk 01:32:06]}
{[%emt 00:00:21]} d6 {[%clk 01:30:12]} {[%emt 00:00:24]} 8. Nc3 {[%clk
01:31:44]} {[%emt 00:00:51]} Qf6 {[%clk 01:29:34]} {[%emt 00:01:09]} 9. Qxf6
{[%clk 01:31:04]} {[%emt 00:01:09]} Nxf6 {[%clk 01:29:48]} {[%emt 00:00:16]} 10.
O-O-O {[%clk 01:30:17]} {[%emt 00:01:17]} O-O {[%clk 01:28:59]} {[%emt
00:01:19]} 11. f3 {[%clk 01:29:44]} {[%emt 00:01:04]} h5 {[%clk 01:28:07]}
{[%emt 00:01:22]} 12. Bd3 {[%clk 01:28:53]} {[%emt 00:01:20]} Be6 {[%clk
01:27:14]} {[%emt 00:01:24]} 13. h3 {[%clk 01:28:26]} {[%emt 00:00:55]} Rfc8
{[%clk 01:27:04]} {[%emt 00:00:41]} 14. g4 {[%clk 01:28:01]} {[%emt 00:00:54]}
Kf8 {[%clk 01:26:43]} {[%emt 00:00:53]} 15. g5 {[%clk 01:27:01]} {[%emt
00:01:29]} Nh7 {[%clk 01:24:53]} {[%emt 00:02:20]} 16. h4 {[%clk 01:26:20]}
{[%emt 00:01:11]} g6 {[%clk 01:24:53]} {[%emt 00:00:31]} 17. Be2 {[%clk
01:24:56]} {[%emt 00:01:53]} a6 {[%clk 01:23:51]} {[%emt 00:01:32]} 18. Rdf1
{[%clk 01:23:48]} {[%emt 00:01:37]} Re8 {[%clk 01:22:28]} {[%emt 00:01:54]} 19.
f4 {[%clk 01:23:31]} {[%emt 00:00:47]} f5 {[%clk 01:20:49]} {[%emt 00:02:10]}
20. Bd3 {[%clk 01:22:41]} {[%emt 00:01:19]} Kg7 {[%clk 01:15:37]} {[%emt
00:05:42]} 21. exf5 {[%clk 01:22:25]} {[%emt 00:00:47]} Bxf5 {[%clk 01:15:34]}
{[%emt 00:00:32]} 22. Bxf5 {[%clk 01:22:20]} {[%emt 00:00:35]} gxf5 {[%clk
01:15:46]} {[%emt 00:00:19]} 23. Nd5 {[%clk 01:21:28]} {[%emt 00:01:21]} Rac8
{[%clk 01:15:08]} {[%emt 00:01:08]} 24. Re1 {[%clk 01:20:33]} {[%emt 00:01:25]}
c6 {[%clk 01:12:56]} {[%emt 00:02:43]} 25. Nc3 {[%clk 01:18:05]} {[%emt
00:02:57]} Kg6 {[%clk 01:07:49]} {[%emt 00:05:38]} 26. Kd2 {[%clk 01:15:57]}
{[%emt 00:02:37]} Nf8 {[%clk 01:05:55]} {[%emt 00:02:24]} 27. Re3 {[%clk
01:12:58]} {[%emt 00:03:28]} Rxe3 {[%clk 01:05:41]} {[%emt 00:00:45]} 28. Kxe3
{[%clk 01:13:09]} {[%emt 00:00:19]} Re8+ {[%clk 01:04:48]} {[%emt 00:01:24]} 29.
Kd2 {[%clk 01:12:17]} {[%emt 00:01:22]} d5 {[%clk 01:04:16]} {[%emt 00:01:02]}
30. Re1 {[%clk 01:10:55]} {[%emt 00:01:51]} Re6 {[%clk 01:04:18]} {[%emt
00:00:28]} 31. Re2 {[%clk 01:08:56]} {[%emt 00:02:28]} Kf7 {[%clk 01:03:00]}
{[%emt 00:01:49]} 32. Rh2 {[%clk 01:07:23]} {[%emt 00:02:03]} Ng6 {[%clk
01:02:21]} {[%emt 00:01:09]} 33. Ne2 {[%clk 01:05:10]} {[%emt 00:02:42]} Re4
{[%clk 01:01:00]} {[%emt 00:01:52]} 34. Ng3 {[%clk 01:04:59]} {[%emt 00:00:40]}
Rxf4 {[%clk 01:00:52]} {[%emt 00:00:39]} 35. Nxh5 {[%clk 01:04:26]} {[%emt
00:01:03]} Rxh4 {[%clk 01:00:49]} {[%emt 00:00:34]} 36. Rxh4 {[%clk 01:03:37]}
{[%emt 00:01:18]} Nxh4 {[%clk 01:01:09]} {[%emt 00:00:10]} 37. Nf4 {[%clk
01:03:10]} {[%emt 00:00:57]} Nf3+ {[%clk 01:01:14]} {[%emt 00:00:25]} 38. Ke3
{[%clk 01:03:03]} {[%emt 00:00:37]} Nxg5 {[%clk 01:01:33]} {[%emt 00:00:11]} 39.
b4 {[%clk 01:02:06]} {[%emt 00:01:27]} Ne6 {[%clk 01:01:28]} {[%emt 00:00:35]}
40. Nxe6 {[%emt 00:00:38]} Kxe6 {[%clk 01:01:52]} 41. a4 {[%clk 01:01:37]}
{[%emt 00:00:58]} b5 {[%clk 01:01:34]} {[%emt 00:00:47]} 42. a5 {[%clk
01:01:47]} {[%emt 00:00:20]} Ke5 {[%clk 01:01:39]} {[%emt 00:00:24]} 43. Ke2
{[%clk 01:01:19]} {[%emt 00:00:58]} Ke4 {[%clk 01:01:54]} {[%emt 00:00:16]} 44.
c3 {[%clk 01:01:17]} {[%emt 00:00:32]} d4 {[%clk 01:01:49]} {[%emt 00:00:35]}
45. cxd4 {[%clk 01:01:25]} {[%emt 00:00:22]} Kxd4 {[%clk 01:02:10]} {[%emt
00:00:08]} 46. Kd2 {[%clk 01:00:58]} {[%emt 00:00:57]} f4 {[%clk 01:01:32]}
{[%emt 00:01:09]} 47. Ke2 {[%clk 01:01:08]} {[%emt 00:00:19]} Kc4 {[%clk
01:01:35]} {[%emt 00:00:28]} 48. Kf3 {[%clk 01:01:29]} {[%emt 00:00:09]} Kxb4
{[%clk 01:01:57]} {[%emt 00:00:08]} 49. Kxf4 {[%clk 01:01:52]} {[%emt
00:00:06]} Kxa5 {[%clk 01:02:21]} {[%emt 00:00:06]} 50. Ke3 {[%clk 01:02:12]}
{[%emt 00:00:10]} Kb4 {[%clk 01:02:37]} {[%emt 00:00:16]} 51. Kd2 {[%clk
01:02:18]} {[%emt 00:00:22]} Kb3 {[%clk 01:02:45]} {[%emt 00:00:22]} 52. Kd1
{[%clk 01:02:23]} {[%emt 00:00:25]} Kb2 {[%clk 01:03:05]} {[%emt 00:00:11]} 53.
Kd2 {[%clk 01:02:37]} {[%emt 00:00:15]} a5 {[%clk 01:03:30]} {[%emt 00:00:06]}
54. Kd3 {[%clk 01:02:59]} {[%emt 00:00:08]} a4 {[%clk 01:03:50]} {[%emt
00:00:10]} 55. Kd4 {[%clk 01:03:18]} {[%emt 00:00:10]} a3 {[%clk 01:04:15]}
{[%emt 00:00:06]} 56. Kc5 {[%clk 01:03:38]} {[%emt 00:00:09]} a2 {[%clk
01:04:31]} {[%emt 00:00:14]} 57. Kxc6 {[%clk 01:03:53]} {[%emt 00:00:15]} b4
{[%clk 01:04:54]} {[%emt 00:00:08]} 58. Kc5 {[%clk 01:04:12]} {[%emt 00:00:10]}
b3 {[%clk 01:05:19]} {[%emt 00:00:06]} 59. Kc4 {[%clk 01:04:24]} {[%emt
00:00:17]} a1=Q {[%emt 00:00:14]} 60. Kd3 {[%clk 01:04:40]} {[%emt 00:00:13]}
Qe1 {[%clk 01:05:29]} {[%emt 00:00:39]} 61. Kc4 {[%clk 01:04:49]} {[%emt
00:00:19]} Kc2 {[%clk 01:05:50]} {[%emt 00:00:10]} 62. Kb5 {[%clk 01:04:56]}
{[%emt 00:00:24]} Qc3 {[%clk 01:06:08]} {[%emt 00:00:12]} 63. Ka4 {[%clk
01:04:54]} {[%emt 00:00:31]} b2 {[%clk 01:06:18]} {[%emt 00:00:21]} 64. Kb5
{[%clk 01:05:14]} {[%emt 00:00:09]} b1=Q+ {[%clk 01:06:26]} {[%emt 00:00:22]}
65. Ka4 {[%clk 01:05:23]} {[%emt 00:00:21]} Qca1# {[%clk 01:06:40]} {[%emt
00:00:16]} 0-1

[Event "NJSK 2024 Cm"]
[Site "Groningen, Netherlands"]
[Date "2024.04.30"]
[Round "4.6"]
[White "Koorevaar, Sarah-Joy"]
[Black "Jermin, Ayleanna"]
[Result "1-0"]
[TimeControl "90min/40moves + 30min + 30sec/move"]
[WhiteElo "1544"]
[BlackElo "1249"]

1. d4 {[%clk 01:30:59]} d5 {[%clk 01:30:01]} {[%emt 00:00:59]} 2. c4 {[%clk
01:31:26]} {[%emt 00:00:03]} c6 {[%clk 01:29:33]} {[%emt 00:00:58]} 3. Nf3
{[%clk 01:31:52]} {[%emt 00:00:04]} Nf6 {[%clk 01:28:07]} {[%emt 00:01:56]} 4.
g3 {[%clk 01:32:12]} {[%emt 00:00:11]} h6 {[%clk 01:26:04]} {[%emt 00:02:32]} 5.
Bg2 {[%clk 01:32:35]} {[%emt 00:00:08]} Bg4 {[%clk 01:24:55]} {[%emt 00:01:38]}
6. O-O {[%clk 01:32:43]} {[%emt 00:00:22]} e6 {[%clk 01:22:43]} {[%emt
00:02:42]} 7. Nc3 {[%clk 01:31:45]} {[%emt 00:01:28]} Bd6 {[%clk 01:19:15]}
{[%emt 00:03:58]} 8. c5 {[%clk 01:31:33]} {[%emt 00:00:42]} Bc7 {[%clk
01:18:43]} {[%emt 00:01:02]} 9. b4 {[%clk 01:31:11]} {[%emt 00:00:52]} b6
{[%clk 01:16:14]} {[%emt 00:03:00]} 10. a4 {[%clk 01:26:37]} {[%emt 00:05:04]}
Nbd7 {[%clk 01:13:10]} {[%emt 00:03:33]} 11. Re1 {[%clk 01:24:12]} {[%emt
00:02:54]} e5 {[%clk 01:10:21]} {[%emt 00:03:20]} 12. e4 {[%clk 01:20:57]}
{[%emt 00:03:45]} a5 {[%clk 01:08:46]} {[%emt 00:02:06]} 13. b5 {[%clk
01:04:31]} {[%emt 00:16:56]} cxb5 {[%clk 01:08:09]} {[%emt 00:01:06]} 14. c6
{[%clk 01:04:44]} {[%emt 00:00:17]} Nb8 {[%clk 01:06:18]} {[%emt 00:02:22]} 15.
axb5 {[%clk 01:05:08]} {[%emt 00:00:05]} O-O {[%clk 01:04:37]} {[%emt
00:02:11]} 16. Ba3 {[%clk 01:04:11]} {[%emt 00:01:27]} Re8 {[%clk 01:04:29]}
{[%emt 00:00:38]} 17. exd5 {[%clk 00:58:10]} {[%emt 00:06:31]} e4 {[%clk
01:02:58]} {[%emt 00:02:01]} 18. Nxe4 {[%clk 00:48:03]} {[%emt 00:10:38]} Nxe4
{[%clk 01:01:52]} {[%emt 00:01:34]} 19. Qd3 {[%clk 00:47:19]} {[%emt 00:01:14]}
Qxd5 {[%clk 00:59:55]} {[%emt 00:02:27]} 20. Nd2 {[%clk 00:45:04]} {[%emt
00:02:46]} Bf5 {[%clk 00:56:43]} {[%emt 00:03:42]} 21. Nxe4 {[%clk 00:42:18]}
{[%emt 00:03:16]} Qd8 {[%clk 00:54:47]} {[%emt 00:02:26]} 22. Qe3 {[%clk
00:41:14]} {[%emt 00:01:33]} Bxe4 {[%clk 00:50:35]} {[%emt 00:04:43]} 23. Bxe4
{[%clk 00:41:37]} {[%emt 00:00:08]} Qg5 {[%clk 00:48:43]} {[%emt 00:02:20]} 24.
Qxg5 {[%clk 00:41:36]} {[%emt 00:00:32]} hxg5 {[%clk 00:49:02]} {[%emt
00:00:10]} 25. Bh7+ {[%clk 00:42:05]} {[%emt 00:00:03]} Kh8 {[%clk 00:49:21]}
{[%emt 00:00:10]} 26. Rxe8+ {[%clk 00:42:29]} {[%emt 00:00:06]} Kxh7 {[%clk
00:49:47]} {[%emt 00:00:05]} 27. Rd1 {[%clk 00:42:12]} {[%emt 00:00:46]} a4
{[%clk 00:50:11]} {[%emt 00:00:06]} 28. d5 {[%clk 00:42:37]} {[%emt 00:00:06]}
Ra5 {[%clk 00:50:35]} {[%emt 00:00:05]} 29. d6 {[%clk 00:42:33]} {[%emt
00:00:34]} Bxd6 {[%clk 00:50:57]} {[%emt 00:00:07]} 30. Bxd6 {[%clk 00:42:04]}
{[%emt 00:01:00]} Nxc6 {[%clk 00:51:01]} {[%emt 00:00:26]} 31. bxc6 {[%clk
00:42:27]} {[%emt 00:00:07]} Ra7 {[%clk 00:51:08]} {[%emt 00:00:23]} 32. c7
{[%clk 00:42:45]} {[%emt 00:00:13]} Rxc7 {[%clk 00:51:32]} {[%emt 00:00:05]} 33.
Bxc7 {[%clk 00:43:08]} {[%emt 00:00:06]} b5 {[%clk 00:51:51]} {[%emt 00:00:12]}
34. Rb8 {[%clk 00:43:18]} {[%emt 00:00:20]} a3 {[%clk 00:52:00]} {[%emt
00:00:21]} 35. Rxb5 {[%clk 00:43:42]} {[%emt 00:00:06]} a2 {[%clk 00:52:21]}
{[%emt 00:00:09]} 36. Rxg5 {[%clk 00:43:56]} {[%emt 00:00:16]} f6 {[%clk
00:52:47]} {[%emt 00:00:04]} 37. Ra5 {[%clk 00:43:44]} {[%emt 00:00:42]} g5
{[%clk 00:52:45]} {[%emt 00:00:32]} 38. Rd6 {[%clk 00:43:44]} {[%emt 00:00:31]}
Kg6 {[%clk 00:53:03]} {[%emt 00:00:11]} 39. Bd8 {[%clk 00:44:03]} {[%emt
00:00:11]} g4 {[%clk 00:53:07]} {[%emt 00:00:27]} 40. Rxf6+ {[%clk 00:44:14]}
{[%emt 00:00:18]} Kg7 {[%clk 00:53:18]} {[%emt 00:00:16]} 41. Ra7+ {[%clk
00:44:35]} {[%emt 00:00:12]} Kg8 {[%clk 00:53:41]} {[%emt 00:00:07]} 42. Rb6
{[%clk 00:44:46]} {[%emt 00:00:19]} a1=Q+ {[%emt 00:00:16]} 43. Rxa1 {[%emt
00:00:03]} Kf7 {[%clk 00:53:34]} {[%emt 00:00:18]} 44. Ra7+ {[%clk 00:45:11]}
{[%emt 00:00:05]} Ke8 {[%clk 00:53:48]} {[%emt 00:00:15]} 45. Rb8 {[%clk
00:45:34]} {[%emt 00:00:08]} Kf8 {[%clk 00:54:11]} {[%emt 00:00:08]} 46. Bh4#
{[%clk 00:45:56]} {[%emt 00:00:07]} 1-0

[Event "NJSK 2024 Cm"]
[Site "Groningen, Netherlands"]
[Date "2024.04.30"]
[Round "4.7"]
[White "Schipper, Sarah"]
[Black "Barbier, Emma"]
[Result "0-1"]
[TimeControl "90min/40moves + 30min + 30sec/move"]
[WhiteElo "1238"]
[BlackElo "1473"]

1. e4 {[%clk 01:30:58]} {[%emt 00:00:02]} e5 {[%clk 01:30:55]} {[%emt
00:00:05]} 2. Nf3 {[%clk 01:31:23]} {[%emt 00:00:04]} Nc6 {[%clk 01:31:22]}
{[%emt 00:00:04]} 3. Bc4 {[%clk 01:31:41]} {[%emt 00:00:12]} Bc5 {[%clk
01:31:41]} {[%emt 00:00:10]} 4. d3 {[%clk 01:31:55]} {[%emt 00:00:17]} h6
{[%clk 01:32:05]} {[%emt 00:00:07]} 5. Nc3 {[%clk 01:31:05]} {[%emt 00:01:19]}
Nf6 {[%clk 01:32:06]} {[%emt 00:00:29]} 6. Be3 {[%clk 01:31:25]} {[%emt
00:00:10]} Bb6 {[%clk 01:32:29]} {[%emt 00:00:07]} 7. Qd2 {[%clk 01:28:10]}
{[%emt 00:03:44]} d6 {[%clk 01:32:28]} {[%emt 00:00:32]} 8. O-O-O {[%clk
01:27:09]} {[%emt 00:01:31]} Be6 {[%clk 01:31:55]} {[%emt 00:01:03]} 9. Bd5
{[%clk 01:11:45]} {[%emt 00:15:55]} Qd7 {[%clk 01:29:51]} {[%emt 00:02:33]} 10.
d4 {[%clk 01:02:06]} {[%emt 00:10:08]} Bg4 {[%clk 01:26:50]} {[%emt 00:03:32]}
11. dxe5 {[%clk 00:56:55]} {[%emt 00:05:41]} dxe5 {[%clk 01:26:13]} {[%emt
00:01:05]} 12. Rde1 {[%clk 00:52:23]} {[%emt 00:05:03]} Bxf3 {[%clk 01:18:42]}
{[%emt 00:08:01]} 13. gxf3 {[%clk 00:51:59]} {[%emt 00:00:55]} Ba5 {[%clk
01:17:40]} {[%emt 00:01:32]} 14. Bxc6 {[%clk 00:47:03]} {[%emt 00:05:26]} Qxc6
{[%clk 01:16:44]} {[%emt 00:01:26]} 15. Rhg1 {[%clk 00:44:32]} {[%emt
00:03:01]} g5 {[%clk 01:14:39]} {[%emt 00:02:35]} 16. Rd1 {[%clk 00:37:49]}
{[%emt 00:07:13]} Qe6 {[%clk 01:11:42]} {[%emt 00:03:24]} 17. Kb1 {[%clk
00:33:35]} {[%emt 00:04:47]} Qh3 {[%clk 01:10:05]} {[%emt 00:02:05]} 18. Rh1
{[%clk 00:32:31]} {[%emt 00:01:36]} Qxf3 {[%clk 01:10:01]} {[%emt 00:00:33]} 19.
Rhg1 {[%clk 00:29:36]} {[%emt 00:03:25]} Qh3 {[%clk 01:09:30]} {[%emt
00:01:00]} 20. Rh1 {[%clk 00:29:10]} {[%emt 00:00:58]} Nxe4 {[%clk 01:08:32]}
{[%emt 00:01:28]} 21. Qd7+ {[%clk 00:28:52]} {[%emt 00:00:48]} Qxd7 {[%clk
01:08:46]} {[%emt 00:00:15]} 22. Rxd7 {[%clk 00:28:46]} {[%emt 00:00:37]} Kxd7
{[%clk 01:09:11]} {[%emt 00:00:04]} 23. Nxe4 {[%clk 00:29:06]} {[%emt
00:00:11]} Rad8 {[%clk 01:09:19]} {[%emt 00:00:22]} 24. Bxa7 {[%clk 00:29:09]}
{[%emt 00:00:28]} b6 {[%clk 01:09:39]} {[%emt 00:00:09]} 25. a3 {[%clk
00:25:23]} {[%emt 00:04:16]} Kc8 {[%clk 01:09:52]} {[%emt 00:00:17]} 26. Bxb6
{[%clk 00:23:24]} {[%emt 00:02:29]} Bxb6 {[%clk 01:10:11]} {[%emt 00:00:11]} 27.
f3 {[%clk 00:23:40]} {[%emt 00:00:14]} Rd5 {[%clk 01:10:00]} {[%emt 00:00:40]}
28. Re1 {[%clk 00:22:18]} {[%emt 00:01:53]} Rhd8 {[%clk 01:09:45]} {[%emt
00:00:46]} 29. Nc3 {[%clk 00:22:30]} {[%emt 00:00:17]} Rd4 {[%clk 01:09:27]}
{[%emt 00:00:45]} 30. Rxe5 {[%clk 00:22:04]} {[%emt 00:00:59]} Rf4 {[%clk
01:09:22]} {[%emt 00:00:33]} 31. Re2 {[%clk 00:20:30]} {[%emt 00:02:05]} Rxf3
{[%clk 01:09:27]} {[%emt 00:00:25]} 32. Nb5 {[%clk 00:16:56]} {[%emt 00:04:05]}
h5 {[%clk 01:08:39]} {[%emt 00:01:17]} 33. Nc3 {[%clk 00:17:14]} {[%emt
00:00:12]} h4 {[%clk 01:08:59]} {[%emt 00:00:10]} 34. Ne4 {[%clk 00:17:16]}
{[%emt 00:00:29]} g4 {[%clk 01:08:59]} {[%emt 00:00:28]} 35. Rg2 {[%clk
00:17:20]} {[%emt 00:00:27]} f5 {[%clk 01:08:26]} {[%emt 00:01:03]} 36. Ng5
{[%clk 00:16:41]} {[%emt 00:01:10]} Rf1+ {[%clk 01:08:29]} {[%emt 00:00:26]} 37.
Ka2 {[%clk 00:16:59]} {[%emt 00:00:13]} Rg8 {[%clk 01:08:44]} {[%emt 00:00:14]}
38. Nf7 {[%clk 00:16:50]} {[%emt 00:00:39]} g3 {[%clk 01:08:30]} {[%emt
00:00:43]} 39. c3 {[%clk 00:16:51]} {[%emt 00:00:31]} h3 {[%clk 01:08:43]}
{[%emt 00:00:16]} 40. Re2 {[%clk 00:16:52]} {[%emt 00:00:28]} g2 {[%clk
01:08:58]} {[%emt 00:00:16]} 41. Ne5 {[%clk 00:16:40]} {[%emt 00:00:43]} g1=Q
{[%clk 01:09:19]} {[%emt 00:00:09]} 42. Nd3 {[%clk 00:16:46]} {[%emt 00:00:23]}
Ra1+ {[%clk 01:09:31]} {[%emt 00:00:18]} 43. Kb3 {[%clk 00:17:09]} {[%emt
00:00:07]} Qd1+ {[%clk 01:09:47]} {[%emt 00:00:13]} 44. Rc2 {[%clk 00:17:28]}
{[%emt 00:00:12]} Qxd3 {[%clk 01:10:12]} {[%emt 00:00:05]} 45. a4 {[%clk
00:17:46]} {[%emt 00:00:13]} Rxa4 {[%clk 01:10:33]} {[%emt 00:00:09]} 46. Kxa4
{[%clk 00:17:58]} {[%emt 00:00:18]} Qxc2+ {[%clk 01:10:55]} {[%emt 00:00:08]}
47. Kb4 {[%clk 00:18:25]} {[%emt 00:00:03]} Qxb2+ {[%clk 01:11:20]} {[%emt
00:00:05]} 48. Kc4 {[%clk 00:18:49]} {[%emt 00:00:05]} Rg4+ {[%clk 01:11:44]}
{[%emt 00:00:07]} 49. Kd5 {[%clk 00:19:14]} {[%emt 00:00:05]} Qb5+ {[%clk
01:12:08]} {[%emt 00:00:06]} 50. Ke6 {[%clk 00:19:32]} {[%emt 00:00:11]} f4
{[%clk 01:12:30]} {[%emt 00:00:09]} 51. c4 {[%clk 00:19:54]} {[%emt 00:00:08]}
Rg6+ {[%clk 01:12:34]} {[%emt 00:00:25]} 52. Kf7 {[%clk 00:20:18]} {[%emt
00:00:07]} Qf5+ {[%clk 01:12:58]} {[%emt 00:00:06]} 53. Ke7 {[%clk 00:20:21]}
{[%emt 00:00:27]} Bc5+ {[%clk 01:13:12]} {[%emt 00:00:15]} 54. Ke8 {[%clk
00:20:40]} {[%emt 00:00:11]} Rg8 {[%clk 01:13:26]} {[%emt 00:00:13]} 0-1

[Event "NJSK 2024 Cm"]
[Site "Groningen, Netherlands"]
[Date "2024.05.01"]
[Round "5.1"]
[White "Ganeshram, Niranjana"]
[Black "Roebers, Bregje"]
[Result "0-1"]
[TimeControl "90min/40moves + 30min + 30sec/move"]
[WhiteElo "1566"]
[BlackElo "1829"]

1. e4 {[%clk 01:30:59]} d6 {[%clk 01:30:56]} {[%emt 00:00:05]} 2. d4 {[%clk
01:31:24]} {[%emt 00:00:04]} Nf6 {[%clk 01:31:20]} {[%emt 00:00:06]} 3. Nc3
{[%clk 01:31:48]} {[%emt 00:00:07]} g6 {[%clk 01:31:41]} {[%emt 00:00:08]} 4.
Be2 {[%clk 01:32:14]} {[%emt 00:00:04]} Bg7 {[%clk 01:32:02]} {[%emt 00:00:09]}
5. h4 {[%clk 01:32:35]} {[%emt 00:00:09]} c5 {[%clk 01:26:54]} {[%emt
00:05:38]} 6. d5 {[%clk 01:28:53]} {[%emt 00:04:12]} h5 {[%clk 01:19:11]}
{[%emt 00:08:13]} 7. Nf3 {[%clk 01:28:02]} {[%emt 00:01:20]} Nbd7 {[%clk
01:16:41]} {[%emt 00:03:01]} 8. Ng5 {[%clk 01:28:03]} {[%emt 00:00:29]} Ne5
{[%clk 01:13:25]} {[%emt 00:03:46]} 9. Rg1 {[%clk 01:23:28]} {[%emt 00:05:04]}
Neg4 {[%clk 01:00:54]} {[%emt 00:13:01]} 10. f3 {[%clk 01:19:15]} {[%emt
00:04:44]} Ne5 {[%clk 01:00:47]} {[%emt 00:00:38]} 11. Bf4 {[%clk 01:18:32]}
{[%emt 00:01:12]} Nh7 {[%clk 00:58:02]} {[%emt 00:03:15]} 12. Nh3 {[%clk
01:14:41]} {[%emt 00:04:21]} Bf6 {[%clk 00:56:07]} {[%emt 00:02:25]} 13. Bg5
{[%clk 01:09:10]} {[%emt 00:06:01]} Nxg5 {[%clk 00:54:58]} {[%emt 00:01:39]} 14.
hxg5 {[%clk 01:08:53]} {[%emt 00:00:47]} Bg7 {[%clk 00:54:59]} {[%emt
00:00:28]} 15. Nf2 {[%clk 01:04:19]} {[%emt 00:05:04]} Qa5 {[%clk 00:47:13]}
{[%emt 00:08:17]} 16. Qd2 {[%clk 01:00:14]} {[%emt 00:04:35]} a6 {[%clk
00:45:20]} {[%emt 00:02:23]} 17. Nb1 {[%clk 00:50:30]} {[%emt 00:10:14]} Qb6
{[%clk 00:39:18]} {[%emt 00:06:32]} 18. c3 {[%clk 00:49:41]} {[%emt 00:01:19]}
Qc7 {[%clk 00:34:50]} {[%emt 00:04:58]} 19. f4 {[%clk 00:48:16]} {[%emt
00:01:54]} Nd7 {[%clk 00:28:34]} {[%emt 00:06:47]} 20. Rh1 {[%clk 00:46:55]}
{[%emt 00:01:51]} Nf8 {[%clk 00:24:25]} {[%emt 00:04:39]} 21. Na3 {[%clk
00:44:10]} {[%emt 00:03:15]} b5 {[%clk 00:23:47]} {[%emt 00:01:08]} 22. Rc1
{[%clk 00:43:48]} {[%emt 00:00:52]} Bd7 {[%clk 00:22:47]} {[%emt 00:01:29]} 23.
Nc2 {[%clk 00:43:25]} {[%emt 00:00:54]} Qb6 {[%clk 00:20:45]} {[%emt 00:02:33]}
24. a3 {[%clk 00:42:44]} {[%emt 00:01:11]} a5 {[%clk 00:17:35]} {[%emt
00:03:39]} 25. b3 {[%clk 00:42:05]} {[%emt 00:01:08]} Bc8 {[%clk 00:13:49]}
{[%emt 00:04:16]} 26. Bd3 {[%clk 00:40:47]} {[%emt 00:01:47]} Bd7 {[%clk
00:10:25]} {[%emt 00:03:56]} 27. Ne3 {[%clk 00:37:35]} {[%emt 00:03:43]} Rb8
{[%clk 00:09:46]} {[%emt 00:01:08]} 28. Ned1 {[%clk 00:36:26]} {[%emt
00:01:39]} Qc7 {[%clk 00:08:46]} {[%emt 00:01:30]} 29. Qe2 {[%clk 00:35:46]}
{[%emt 00:01:11]} Qb7 {[%clk 00:07:06]} {[%emt 00:02:10]} 30. Qc2 {[%clk
00:34:02]} {[%emt 00:02:13]} b4 {[%clk 00:07:02]} {[%emt 00:00:34]} 31. c4
{[%clk 00:34:07]} {[%emt 00:00:25]} bxa3 {[%clk 00:06:31]} {[%emt 00:01:01]} 32.
Rb1 {[%clk 00:32:20]} {[%emt 00:02:17]} Qb4+ {[%clk 00:06:37]} {[%emt
00:00:23]} 33. Kf1 {[%clk 00:32:16]} {[%emt 00:00:34]} Nh7 {[%clk 00:06:07]}
{[%emt 00:01:01]} 34. Rg1 {[%clk 00:30:04]} {[%emt 00:02:42]} Kd8 {[%clk
00:06:28]} {[%emt 00:00:09]} 35. Be2 {[%clk 00:29:51]} {[%emt 00:00:43]} Kc7
{[%clk 00:06:06]} {[%emt 00:00:52]} 36. Nd3 {[%clk 00:29:53]} {[%emt 00:00:28]}
Qb6 {[%clk 00:06:05]} {[%emt 00:00:32]} 37. Nc3 {[%clk 00:29:49]} {[%emt
00:00:32]} a4 {[%clk 00:05:24]} {[%emt 00:01:12]} 38. bxa4 {[%clk 00:28:37]}
{[%emt 00:01:42]} Qa5 {[%clk 00:05:33]} {[%emt 00:00:21]} 39. Rxb8 {[%clk
00:27:10]} {[%emt 00:01:57]} Rxb8 {[%clk 00:05:46]} {[%emt 00:00:17]} 40. e5
{[%clk 00:24:52]} {[%emt 00:02:48]} a2 {[%clk 00:01:14]} {[%emt 00:05:02]} 41.
Nxa2 {[%clk 00:24:25]} {[%emt 00:00:57]} Bxa4 {[%clk 00:01:01]} {[%emt
00:00:42]} 42. Qc1 {[%clk 00:23:35]} {[%emt 00:01:21]} Bb3 {[%clk 00:00:45]}
{[%emt 00:00:46]} 43. Nc3 {[%clk 00:23:30]} {[%emt 00:00:35]} Bxc4 {[%clk
00:30:20]} {[%emt 00:00:54]} 44. exd6+ {[%clk 00:49:58]} {[%emt 00:04:03]} exd6
{[%clk 00:28:58]} {[%emt 00:01:52]} 45. Nd1 {[%clk 00:48:27]} {[%emt 00:02:00]}
Bxd3 {[%clk 00:25:32]} {[%emt 00:03:57]} 46. Bxd3 {[%clk 00:48:45]} {[%emt
00:00:12]} Bd4 {[%clk 00:25:47]} {[%emt 00:00:15]} 47. Rh1 {[%clk 00:48:27]}
{[%emt 00:00:48]} Re8 {[%clk 00:24:17]} {[%emt 00:02:00]} 48. Nf2 {[%clk
00:47:48]} {[%emt 00:01:08]} Qa2 {[%clk 00:23:26]} {[%emt 00:01:22]} 49. Bc2
{[%clk 00:47:50]} {[%emt 00:00:27]} Bc3 {[%clk 00:15:01]} {[%emt 00:08:55]} 50.
Nd1 {[%clk 00:47:19]} {[%emt 00:01:01]} Re1+ {[%clk 00:14:38]} {[%emt
00:00:53]} 51. Kf2 {[%clk 00:47:33]} {[%emt 00:00:15]} Rxh1 {[%clk 00:14:46]}
{[%emt 00:00:23]} 52. Nxc3 {[%clk 00:47:44]} {[%emt 00:00:20]} Rxc1 {[%emt
00:00:18]} 53. Nxa2 {[%clk 00:48:10]} {[%emt 00:00:01]} Rxc2+ {[%clk 00:15:22]}
{[%emt 00:00:09]} 54. Kf3 {[%clk 00:48:37]} {[%emt 00:00:02]} Rxa2 {[%clk
00:15:40]} {[%emt 00:00:13]} 0-1